bitfinex/quotes_BTCUSD_20251215
["timestamp","ask_amount","ask_price","bid_price","bid_amount"]
[1765815967787,0.01148593,87063.0,87058.0,0.01179032]
[1765815967995,0.01148606,87062.0,87059.0,0.24121385]
[1765815968205,0.01148488,87071.0,87066.0,0.01148553]
[1765815968404,0.01148197,87093.0,87082.0,0.01148342]
[1765815968624,1.0,87087.0,87084.0,0.01148316]
[1765815968827,0.24113608,87088.0,87085.0,0.03904389]
[1765815968828,1.0,87088.0,87085.0,0.03904389]
[1765815968999,1.24113614,87088.0,87085.0,0.02756086]
[1765815969201,1.0,87087.0,87085.0,0.02756086]
[1765815969405,1.0,87092.0,87086.0,0.0114829]
[1765815969583,0.3089,87089.0,87087.0,0.22965463]
[1765815969790,0.3091,87089.0,87088.0,0.05064385]
[1765815970050,0.61152484,87092.0,87089.0,0.24113262]
[1765815970192,1.0,87089.0,87088.0,0.05064385]
[1765815970389,0.01148211,87092.0,87086.0,0.24113846]
[1765815970390,0.299,87092.0,87086.0,0.24113846]
[1765815970638,0.1097,87090.0,87087.0,0.01148277]
[1765815970845,0.1097,87090.0,87088.0,0.22965261]
[1765815971043,0.01148066,87103.0,87097.0,0.01148145]
[1765815971343,0.01148118,87099.0,87098.0,0.0067525]
[1765815971548,0.01148118,87099.0,87082.0,0.01148342]
[1765815971549,0.01148356,87081.0,87070.0,0.06159501]
[1765815971747,0.22969238,87073.0,87070.0,0.03133788]
[1765815971958,0.22969238,87073.0,87055.0,0.05027053]
[1765815971959,0.229695,87072.0,87071.0,0.00669732]
[1765815972157,1.0,87072.0,87067.0,0.0114854]
[1765815972313,0.22967794,87079.0,87067.0,0.0114854]
[1765815972314,0.5811,87082.0,87070.0,0.01148501]
[1765815972517,0.01148422,87076.0,87070.0,0.24118471]
[1765815972721,0.01148224,87091.0,87082.0,0.01148342]
[1765815972943,0.01148224,87091.0,87082.0,0.24114889]
[1765815972944,1.0,87084.0,87082.0,0.24114889]
[1765815973281,0.22965836,87086.0,87083.0,0.02641163]
[1765815973282,0.24790156,87085.0,87083.0,0.02641163]
[1765815973490,0.01148395,87078.0,87074.0,0.01148448]
[1765815973608,0.01148395,87078.0,87075.0,0.01148435]
[1765815973808,0.24116315,87078.0,87075.0,0.24117033]
[1765815974016,0.24116315,87078.0,87071.0,0.05011]
[1765815974017,0.01148422,87076.0,87070.0,0.00161287]
[1765815974260,0.01148461,87073.0,87070.0,0.00161287]
[1765815974663,0.01148461,87073.0,87071.0,0.04907592]
[1765815974919,1.00479496,87072.0,87071.0,0.04907592]
[1765815975093,0.24119237,87068.0,87065.0,0.01148567]
[1765815975274,0.01148527,87068.0,87063.0,0.01148593]
[1765815975480,0.22971921,87063.0,87057.0,0.02972672]
[1765815975718,0.0114854,87067.0,87064.0,0.0114858]
[1765815975916,1.24119632,87066.0,87065.0,0.02644917]
[1765815976711,0.22972153,87062.0,87059.0,0.01148646]
[1765815976894,0.22971917,87063.0,87060.0,0.22972625]
[1765815977098,0.24120319,87064.0,87060.0,0.24121258]
[1765815977396,0.01148448,87074.0,87068.0,0.01148527]
[1765815977602,0.22966633,87083.0,87079.0,0.01148382]
[1765815977802,0.01148303,87085.0,87082.0,0.22966712]
[1765815977987,0.01148303,87085.0,87081.0,0.01148356]
[1765815977988,0.01148316,87084.0,87081.0,0.01148356]
[1765815978184,0.01148316,87084.0,87082.0,0.22966851]
[1765815978391,1.0114829,87086.0,87083.0,0.05310475]
[1765815978599,0.22966331,87084.0,87083.0,0.05310475]
[1765815978802,0.22966165,87085.0,87083.0,0.05310475]
[1765815979000,0.22966331,87084.0,87083.0,0.05310475]
[1765815979212,0.22970024,87070.0,87069.0,0.00802009]
[1765815979413,0.01148514,87069.0,87063.0,0.03563593]
[1765815979653,0.01148448,87074.0,87070.0,0.2411851]
[1765815979862,1.0,87073.0,87070.0,0.01148501]
[1765815980080,0.22969539,87072.0,87071.0,0.02526722]
[1765815980424,0.22969539,87072.0,87069.0,0.01148514]
[1765815980425,0.01148514,87069.0,87066.0,0.24119605]
[1765815980609,0.22970566,87068.0,87066.0,0.01148553]
[1765815980802,0.24119093,87068.0,87065.0,0.01148567]
[1765815981004,0.01148527,87068.0,87061.0,0.02415]
[1765815981151,0.22971462,87065.0,87062.0,0.0284161]
[1765815981350,0.2297187,87063.0,87062.0,0.0284161]
[1765815981714,0.2297272,87060.0,87055.0,0.00025214]
[1765815981958,0.22973718,87056.0,87055.0,0.00025214]
[1765815982128,1.22973718,87056.0,87055.0,0.00025214]
[1765815982326,0.01148659,87058.0,87055.0,0.00025214]
[1765815982528,0.01148633,87060.0,87055.0,0.00025214]
[1765815982736,0.22973474,87057.0,87056.0,0.0252968]
[1765815983031,0.22973474,87057.0,87055.0,0.00025214]
[1765815983176,0.24122161,87058.0,87055.0,0.00025214]
[1765815983576,0.22973533,87057.0,87055.0,0.00025214]
[1765815984216,0.001,87056.0,87055.0,0.00025214]
[1765815984419,0.001,87056.0,87055.0,0.09447467]
[1765815984677,0.001,87057.0,87055.0,0.33570147]
[1765815985101,0.002,87057.0,87056.0,0.22973718]
[1765815985301,0.002,87057.0,87056.0,0.31292718]
[1765815985667,0.002,87057.0,87056.0,0.31454005]
[1765815985865,0.002,87057.0,87056.0,0.42504767]
[1765815986172,0.759,87063.0,87061.0,0.24120809]
[1765815986346,0.759,87063.0,87061.0,0.24120851]
[1765815986552,0.01148501,87070.0,87065.0,0.22971221]
[1765815986758,0.02972461,87073.0,87070.0,0.24118525]
[1765815986759,0.22969543,87072.0,87070.0,0.24118525]
[1765815986956,0.22967223,87081.0,87066.0,0.01148553]
[1765815986957,0.2296606,87087.0,87083.0,0.22966496]
[1765815987108,0.52106728,87102.0,87089.0,0.0114825]
[1765815987109,0.01148171,87095.0,87089.0,0.0114825]
[1765815987295,0.17148184,87094.0,87091.0,0.01148224]
[1765815987499,0.17148184,87094.0,87089.0,0.0114825]
[1765815987500,0.39003958,87093.0,87092.0,0.04502085]
[1765815987703,1.0,87097.0,87095.0,0.01148171]
[1765815987927,0.22960761,87106.0,87095.0,0.01148171]
[1765815987928,0.03094227,87110.0,87108.0,0.22960003]
[1765815988134,0.03094227,87116.0,87113.0,0.01147934]
[1765815988344,0.03094227,87116.0,87114.0,0.22958391]
[1765815988543,0.03094227,87118.0,87116.0,0.22957895]
[1765815988805,0.03094227,87118.0,87116.0,0.22957857]
[1765815989011,0.03094227,87121.0,87120.0,0.22956841]
[1765815989275,0.03094227,87126.0,87122.0,0.01147815]
[1765815989467,1.0,87125.0,87123.0,0.22955982]
[1765815989666,1.0,87125.0,87124.0,0.04935571]
[1765815989873,1.06638991,87125.0,87124.0,0.04935571]
[1765815990104,1.0247208,87125.0,87124.0,0.04935571]
[1765815990315,0.01147815,87122.0,87117.0,0.24105409]
[1765815990522,0.24103804,87124.0,87120.0,0.01147842]
[1765815990728,0.24103804,87124.0,87120.0,0.24104588]
[1765815990942,0.6053,87127.0,87125.0,0.01147776]
[1765815991146,0.01147683,87132.0,87127.0,0.01147749]
[1765815991147,0.03094227,87130.0,87127.0,0.01147749]
[1765815991351,0.02975657,87134.0,87127.0,0.01147749]
[1765815991352,0.04166141,87131.0,87128.0,0.01147736]
[1765815991553,0.03094227,87131.0,87128.0,0.01147736]
[1765815991759,0.22954831,87128.0,87126.0,0.01158341]
[1765815991969,0.241017,87131.0,87127.0,0.01147749]
[1765815992173,0.03094227,87133.0,87130.0,0.24101841]
[1765815992361,0.01147657,87134.0,87130.0,0.0114771]
[1765815992708,0.01147657,87134.0,87126.0,0.03505341]
[1765815992709,0.22954733,87128.0,87126.0,0.01158341]
[1765815992904,0.2410573,87117.0,87112.0,0.22958893]
[1765815993128,0.01147868,87118.0,87112.0,0.22958893]
[1765815993129,0.24105321,87118.0,87112.0,0.03800132]
[1765815993353,0.1266,87122.0,87119.0,0.01147855]
[1765815993573,0.22955584,87125.0,87121.0,0.22956512]
[1765815993788,0.22955584,87125.0,87120.0,0.01147842]
[1765815993789,0.14337802,87123.0,87120.0,0.01147842]
[1765815994004,0.04534067,87128.0,87124.0,0.03331]
[1765815994239,0.01147868,87118.0,87113.0,0.01147934]
[1765815994453,0.22958484,87114.0,87110.0,0.01147973]
[1765815994672,0.01147907,87115.0,87110.0,0.01147973]
[1765815994886,0.01147907,87115.0,87111.0,0.03184609]
[1765815994887,0.22958748,87113.0,87111.0,0.03184609]
[1765815995317,0.01148066,87103.0,87100.0,0.02347]
[1765815995530,0.01147987,87109.0,87100.0,0.02347]
[1765815995531,0.24108176,87108.0,87105.0,0.01148039]
[1765815995738,0.24106988,87112.0,87107.0,0.24108229]
[1765815995917,0.002,87118.0,87111.0,0.05678]
[1765815995918,0.01147907,87115.0,87111.0,0.05678]
[1765815996118,0.01147921,87114.0,87112.0,0.010638]
[1765815996350,0.01147894,87116.0,87112.0,0.24022698]
[1765815996548,0.01147907,87115.0,87112.0,0.25170645]
[1765815996989,0.001,87113.0,87112.0,0.010638]
[1765815997358,0.22958527,87114.0,87112.0,0.010638]
[1765815997519,0.22958527,87114.0,87113.0,0.05162655]
[1765815997932,0.24108247,87108.0,87104.0,0.24108848]
[1765815998141,0.24108372,87107.0,87104.0,0.01148052]
[1765815998351,0.01148,87108.0,87105.0,0.01148039]
[1765815998583,0.01147973,87110.0,87107.0,0.01148013]
[1765815998811,0.22960062,87108.0,87104.0,0.241089]
[1765815999018,0.24107296,87111.0,87107.0,0.22960138]
[1765815999644,0.01147921,87114.0,87110.0,0.26290434]
[1765815999846,0.01147921,87114.0,87110.0,0.27438407]
[1765816000043,0.0114796,87111.0,87107.0,0.24108113]
[1765816000266,0.24107372,87111.0,87108.0,0.0776964]
[1765816000467,0.22959525,87110.0,87108.0,0.0776964]
[1765816000673,0.24107372,87111.0,87110.0,0.03331]
[1765816000674,0.001,87111.0,87110.0,0.03331]
[1765816000892,0.001,87111.0,87100.0,0.03656392]
[1765816001092,0.01147987,87109.0,87105.0,0.01148039]
[1765816001294,0.01147973,87110.0,87106.0,0.01148026]
[1765816001494,0.01147973,87110.0,87106.0,0.03495026]
[1765816001711,0.002,87110.0,87108.0,0.22959932]
[1765816001912,0.002,87110.0,87107.0,0.04274134]
[1765816002327,0.002,87110.0,87109.0,0.2295974]
[1765816002476,0.002,87110.0,87108.0,0.22959995]
[1765816002691,0.22960003,87108.0,87107.0,0.03126121]
[1765816003151,0.01137279,87104.0,87101.0,0.24109872]
[1765816003355,0.001,87110.0,87109.0,0.2295974]
[1765816003564,0.01147907,87115.0,87111.0,0.22958953]
[1765816003769,0.22958704,87113.0,87109.0,0.04640274]
[1765816003967,0.22958704,87113.0,87109.0,0.24268984]
[1765816004183,1.0,87124.0,87120.0,0.01147842]
[1765816004471,0.26571257,87123.0,87120.0,0.22956833]
[1765816004675,0.24103889,87123.0,87120.0,0.24104675]
[1765816004878,0.01147802,87123.0,87120.0,0.01147842]
[1765816005136,0.01147815,87122.0,87119.0,0.01147855]
[1765816005322,0.01147815,87122.0,87119.0,0.24104959]
[1765816005639,0.22956705,87121.0,87120.0,0.05050695]
[1765816005846,0.24104215,87122.0,87112.0,0.01147947]
[1765816005847,0.01147907,87115.0,87112.0,0.01147947]
[1765816006051,0.01147894,87116.0,87112.0,0.01147947]
[1765816006261,0.01147881,87117.0,87114.0,0.01147921]
[1765816006474,0.01147815,87122.0,87113.0,0.01147934]
[1765816006475,0.001,87122.0,87121.0,0.01147828]
[1765816006686,0.03086331,87136.0,87133.0,0.0114767]
[1765816006981,0.04122063,87141.0,87135.0,0.22952889]
[1765816006982,0.3467,87137.0,87135.0,0.22952889]
[1765816007183,0.0002,87137.0,87135.0,0.22952889]
[1765816007405,0.22952625,87136.0,87134.0,0.01147657]
[1765816007534,0.0002,87137.0,87135.0,0.03370417]
[1765816007734,0.004,87136.0,87135.0,0.03370417]
[1765816008012,0.23352625,87136.0,87135.0,0.03370417]
[1765816008217,0.004,87136.0,87135.0,0.26283889]
[1765816008552,0.004,87136.0,87135.0,0.03331]
[1765816008754,0.22953416,87133.0,87129.0,0.01147723]
[1765816008981,0.0114767,87133.0,87129.0,0.01147723]
[1765816009181,0.24100716,87135.0,87131.0,0.01147697]
[1765816009496,0.22953416,87133.0,87132.0,0.01304562]
[1765816009676,0.01147683,87132.0,87129.0,0.01147723]
[1765816009857,0.22954996,87127.0,87123.0,0.0496]
[1765816010062,0.22954996,87127.0,87121.0,0.25371209]
[1765816010063,0.01147763,87126.0,87121.0,0.25371209]
[1765816010284,0.01147749,87127.0,87124.0,0.01147789]
[1765816010484,0.002,87135.0,87126.0,0.03331]
[1765816010661,0.22953686,87132.0,87128.0,0.03331]
[1765816011028,0.24101639,87131.0,87128.0,0.03331]
[1765816011207,0.003,87132.0,87130.0,0.22954198]
[1765816011403,0.003,87132.0,87131.0,0.26284942]
[1765816011635,0.003,87132.0,87131.0,0.31244942]
[1765816011947,0.01167618,87137.0,87131.0,0.31244942]
[1765816011948,0.0002,87137.0,87136.0,0.22952625]
[1765816012150,0.0002,87137.0,87136.0,0.28630625]
[1765816012348,0.0002,87137.0,87136.0,0.33590625]
[1765816013115,0.0042,87137.0,87136.0,0.10638]
[1765816013318,0.0062,87137.0,87136.0,0.35613453]
[1765816013516,0.0002,87137.0,87136.0,0.35613453]
[1765816013700,0.0002,87137.0,87136.0,0.07700828]
[1765816013900,0.23272362,87137.0,87136.0,0.04369828]
[1765816014148,0.23272362,87137.0,87136.0,0.02022828]
[1765816014354,0.0032,87137.0,87136.0,0.03331]
[1765816014562,0.0032,87137.0,87136.0,0.33590625]
[1765816015164,0.0032,87137.0,87136.0,0.33751912]
[1765816018114,0.01147644,87135.0,87131.0,0.01147697]
[1765816018322,0.24420006,87137.0,87133.0,0.0114767]
[1765816018492,0.22953056,87135.0,87134.0,0.05369566]
[1765816018753,0.0012,87137.0,87134.0,0.29470374]
[1765816018927,0.2432002,87137.0,87134.0,0.29470142]
[1765816019074,0.0012,87137.0,87134.0,0.06517223]
[1765816019295,0.0002,87137.0,87135.0,0.03406154]
[1765816019539,0.22952625,87136.0,87135.0,0.03406154]
[1765816020770,0.01148066,87103.0,87099.0,0.24110371]
[1765816021016,0.01148066,87103.0,87095.0,0.01148171]
[1765816021017,0.01148092,87101.0,87095.0,0.01148171]
[1765816021213,0.01148105,87100.0,87095.0,0.01148171]
[1765816021410,0.01824,87107.0,87101.0,0.01148092]
[1765816021411,0.01148026,87106.0,87101.0,0.01148092]
[1765816021532,0.01148026,87106.0,87101.0,0.03331]
[1765816021732,0.22961717,87102.0,87097.0,0.01148145]
[1765816021985,0.22960267,87107.0,87105.0,0.05454]
[1765816022142,0.22960267,87107.0,87105.0,0.09926]
[1765816022343,0.22960267,87107.0,87106.0,0.01107412]
[1765816023153,0.22960267,87107.0,87105.0,0.02379]
[1765816023325,0.24108312,87108.0,87097.0,0.04633287]
[1765816023326,0.22962639,87098.0,87097.0,0.04633287]
[1765816023543,0.22962639,87098.0,87097.0,0.00161287]
[1765816023746,0.22961919,87101.0,87080.0,0.05620369]
[1765816023747,0.01148303,87085.0,87080.0,0.05620369]
[1765816023871,0.24114109,87086.0,87083.0,0.01148329]
[1765816024087,0.24114109,87086.0,87083.0,0.04472]
[1765816024329,0.01148224,87091.0,87087.0,0.01148277]
[1765816024552,0.01148224,87091.0,87083.0,0.05781616]
[1765816024553,0.2296423,87092.0,87090.0,0.02379]
[1765816024751,0.2296423,87092.0,87083.0,0.04633287]
[1765816024752,0.22966331,87084.0,87083.0,0.00161287]
[1765816024909,0.22966331,87084.0,87083.0,0.03085811]
[1765816025124,0.22966331,87084.0,87083.0,0.03185811]
[1765816025527,0.22966331,87084.0,87083.0,0.00161287]
[1765816025980,0.22966858,87082.0,87081.0,0.00796737]
[1765816026529,0.24114647,87084.0,87081.0,0.00796737]
[1765816026727,0.22966595,87083.0,87081.0,0.00796737]
[1765816026993,0.02468765,87104.0,87090.0,0.01148237]
[1765816027170,0.01148105,87100.0,87095.0,0.24111338]
[1765816027441,0.01148066,87103.0,87097.0,0.03075]
[1765816027573,0.01148066,87103.0,87100.0,0.03075]
[1765816027574,0.24109681,87102.0,87100.0,0.03075]
[1765816027778,0.24109681,87102.0,87100.0,0.07547]
[1765816027980,0.01148026,87106.0,87100.0,0.07547]
[1765816027981,0.01148039,87105.0,87101.0,0.03075]
[1765816028212,0.01148026,87106.0,87102.0,0.03444237]
[1765816028381,0.01148026,87106.0,87101.0,0.27595005]
[1765816028382,0.24109186,87104.0,87103.0,0.05802834]
[1765816028583,0.01148,87108.0,87105.0,0.06602039]
[1765816028808,0.24108248,87108.0,87107.0,0.03075]
[1765816029166,0.2296053,87106.0,87105.0,0.02379]
[1765816029377,0.2326053,87106.0,87105.0,0.02379]
[1765816029573,0.003,87106.0,87105.0,0.02379]
[1765816029830,0.003,87106.0,87105.0,0.05867642]
[1765816030134,0.01148118,87099.0,87096.0,0.22963108]
[1765816030349,0.01148118,87099.0,87096.0,0.05060295]
[1765816030350,0.22962654,87098.0,87096.0,0.05060295]
[1765816030502,0.01148118,87099.0,87096.0,0.05060295]
[1765816030731,0.24110523,87099.0,87096.0,0.28023393]
[1765816030933,0.22962903,87097.0,87096.0,0.05060295]
[1765816031119,0.01148158,87096.0,87091.0,0.24112692]
[1765816031324,0.01148145,87097.0,87092.0,0.24112341]
[1765816031597,0.01148158,87096.0,87092.0,0.24112341]
[1765816031783,0.22962954,87097.0,87093.0,0.01148197]
[1765816031984,0.22963459,87095.0,87092.0,0.01148211]
[1765816032191,0.22963459,87095.0,87093.0,0.03326004]
[1765816032359,0.24311099,87097.0,87093.0,0.27438108]
[1765816032673,0.01148158,87096.0,87093.0,0.03326004]
[1765816032895,0.22963442,87095.0,87093.0,0.03326004]
[1765816033038,0.22964485,87091.0,87090.0,0.02379]
[1765816033225,0.22964485,87091.0,87080.0,0.01148369]
[1765816033226,0.01148224,87091.0,87087.0,0.01148277]
[1765816033428,0.24112733,87091.0,87087.0,0.01148277]
[1765816033650,0.24112733,87091.0,87087.0,0.24113805]
[1765816033651,0.01148237,87090.0,87087.0,0.24113805]
[1765816034040,0.22964295,87092.0,87088.0,0.22965207]
[1765816034244,0.22964295,87092.0,87081.0,0.01148356]
[1765816034245,0.0114829,87086.0,87081.0,0.01148356]
[1765816034545,0.0114829,87086.0,87078.0,0.02347]
[1765816034546,0.0114829,87086.0,87078.0,0.03495395]
[1765816034733,0.0114829,87086.0,87082.0,0.01148342]
[1765816034890,0.0114829,87086.0,87083.0,0.01148329]
[1765816035092,0.01148237,87090.0,87086.0,0.0114829]
[1765816035297,0.241133,87089.0,87086.0,0.01939986]
[1765816035522,0.0114825,87089.0,87086.0,0.00791696]
[1765816035729,0.00161287,87092.0,87088.0,0.04223263]
[1765816035926,0.24273719,87092.0,87091.0,0.02379]
[1765816036101,0.24113417,87089.0,87086.0,0.00791696]
[1765816036306,0.0114825,87089.0,87086.0,0.00791696]
[1765816036506,0.24113292,87089.0,87086.0,0.23757409]
[1765816036706,0.2296554,87087.0,87086.0,0.00791696]
[1765816036942,0.01148263,87088.0,87086.0,0.22965709]
[1765816037131,0.26255046,87089.0,87085.0,0.24114341]
[1765816037308,0.24113873,87087.0,87084.0,0.01148316]
[1765816038233,0.00161287,87088.0,87086.0,0.22965683]
[1765816038641,0.00161287,87088.0,87087.0,0.2296554]
[1765816038877,0.22966067,87085.0,87081.0,0.22967037]
[1765816039194,0.0130955,87088.0,87084.0,0.01148316]
[1765816039195,0.01148277,87087.0,87084.0,0.01148316]
[1765816039330,0.0114829,87086.0,87081.0,0.24115287]
[1765816039662,0.24114574,87086.0,87083.0,0.24114904]
[1765816039864,0.22966392,87084.0,87081.0,0.24115443]
[1765816040215,0.01148329,87083.0,87078.0,0.02347]
[1765816040424,0.24117907,87073.0,87070.0,0.24118321]
[1765816040626,0.01148422,87076.0,87070.0,0.24118321]
[1765816040627,0.24117537,87074.0,87070.0,0.24118321]
[1765816040863,0.01148422,87076.0,87071.0,0.01148488]
[1765816041026,0.24117388,87075.0,87072.0,0.01148474]
[1765816041235,0.24115976,87080.0,87076.0,0.01148422]
[1765816041417,0.22967913,87078.0,87075.0,0.2719191]
[1765816041629,0.22968425,87077.0,87076.0,0.03281237]
[1765816041944,0.22967691,87079.0,87076.0,0.04429659]
[1765816042162,0.22968072,87078.0,87076.0,0.07504659]
[1765816042364,0.24116073,87079.0,87076.0,0.30472876]
[1765816042569,0.01148408,87077.0,87073.0,0.24117691]
[1765816042729,0.22969736,87072.0,87069.0,0.24118768]
[1765816042929,0.24117716,87073.0,87069.0,0.24118768]
[1765816043180,0.22969574,87072.0,87070.0,0.04672]
[1765816043400,0.01148382,87079.0,87073.0,0.01148461]
[1765816043610,0.22968197,87077.0,87075.0,0.01148435]
[1765816043742,0.22968197,87077.0,87074.0,0.01148448]
[1765816043943,0.24116945,87076.0,87073.0,0.24117461]
[1765816044264,0.3444414,87098.0,87076.0,0.03075]
[1765816044468,0.01148369,87080.0,87077.0,0.04223408]
[1765816044861,0.24116009,87080.0,87077.0,0.27191373]
[1765816045004,0.24115503,87081.0,87078.0,0.24116226]
[1765816045200,0.01148488,87071.0,87067.0,0.22970713]
[1765816045427,0.01148488,87071.0,87067.0,0.03093827]
[1765816045428,0.22970561,87068.0,87067.0,0.03093827]
[1765816045590,0.24118185,87072.0,87067.0,0.03093827]
[1765816045591,0.01148448,87074.0,87070.0,0.22969967]
[1765816045785,0.24118489,87071.0,87068.0,0.24118868]
[1765816046045,0.01148408,87077.0,87073.0,0.01148461]
[1765816046204,0.02972422,87076.0,87071.0,0.2411801]
[1765816046400,0.01824,87076.0,87073.0,0.24117484]
[1765816046607,0.01824,87076.0,87074.0,0.22968907]
[1765816046805,0.01824,87076.0,87073.0,0.24117484]
[1765816047008,0.22969232,87073.0,87072.0,0.03203564]
[1765816047226,0.2297005,87070.0,87066.0,0.01148553]
[1765816047425,0.01148474,87072.0,87069.0,0.22970152]
[1765816047628,0.24117279,87075.0,87072.0,0.01148474]
[1765816047839,0.22969462,87073.0,87070.0,0.24118025]
[1765816048039,0.22969462,87073.0,87070.0,0.01148501]
[1765816048234,0.22969012,87074.0,87071.0,0.06534404]
[1765816048511,0.22969232,87073.0,87071.0,0.05385916]
[1765816048714,0.22969232,87073.0,87071.0,0.28355657]
[1765816048937,0.01148448,87074.0,87072.0,0.22969403]
[1765816049165,0.24792459,87076.0,87073.0,0.26044023]
[1765816049411,0.25940881,87076.0,87075.0,0.03075]
[1765816049680,0.01148395,87078.0,87075.0,0.03075]
[1765816049853,0.22969633,87072.0,87068.0,0.01148527]
[1765816050030,0.01148461,87073.0,87070.0,0.01148501]
[1765816050235,0.22968625,87076.0,87072.0,0.001]
[1765816050444,0.2296851,87076.0,87073.0,0.01148461]
[1765816050627,0.22968739,87075.0,87072.0,0.24117845]
[1765816050824,0.01148461,87073.0,87070.0,0.29698602]
[1765816051032,0.01148448,87074.0,87071.0,0.01148488]
[1765816051411,0.22969113,87074.0,87072.0,0.03199626]
[1765816052879,0.23069113,87074.0,87072.0,0.03199626]
[1765816053058,0.001,87074.0,87072.0,0.03199626]
[1765816053263,0.001,87074.0,87072.0,0.26169102]
[1765816053471,0.22969232,87073.0,87072.0,0.03299626]
[1765816054168,0.23069123,87074.0,87072.0,0.03199626]
[1765816054363,0.23069123,87074.0,87073.0,0.05373491]
[1765816054855,0.24117184,87075.0,87073.0,0.05373491]
[1765816055508,0.01148435,87075.0,87073.0,0.28342687]
[1765816055709,0.01824,87079.0,87074.0,0.01148448]
[1765816055938,0.01148316,87084.0,87081.0,0.01148356]
[1765816056185,0.01824,87085.0,87083.0,0.03604]
[1765816056405,0.01824,87085.0,87084.0,0.03604]
[1765816056877,0.24790074,87085.0,87082.0,0.24115151]
[1765816057259,0.25938377,87085.0,87082.0,0.01148342]
[1765816057628,0.22966385,87084.0,87082.0,0.01148342]
[1765816057822,0.01148356,87081.0,87077.0,0.2296806]
[1765816057980,0.02804329,87083.0,87079.0,0.01148382]
[1765816058319,0.01924,87085.0,87082.0,0.27719191]
[1765816058446,0.22966416,87084.0,87080.0,0.01148369]
[1765816058646,0.26038403,87085.0,87081.0,0.01148356]
[1765816058846,0.25938403,87085.0,87082.0,0.01148342]
[1765816059082,0.1082716,87085.0,87083.0,0.02870951]
[1765816059715,0.00161287,87088.0,87085.0,0.01148303]
[1765816059879,0.00171114,87102.0,87085.0,0.01148303]
[1765816059880,0.02476944,87097.0,87090.0,0.01148237]
[1765816060236,0.02476944,87097.0,87084.0,0.05466]
[1765816060237,0.22965019,87089.0,87081.0,0.02618]
[1765816060432,0.01148329,87083.0,87078.0,0.01148395]
[1765816060621,0.01148356,87081.0,87075.0,0.01148435]
[1765816060756,0.01148395,87078.0,87075.0,0.01148435]
[1765816061002,0.01148395,87078.0,87066.0,0.01824]
[1765816061003,0.01148448,87074.0,87051.0,0.01148751]
[1765816061186,0.01148448,87074.0,87049.0,0.24124294]
[1765816061187,0.22973454,87057.0,87049.0,0.24124294]
[1765816061380,0.22973454,87057.0,87047.0,0.02618]
[1765816061646,1.26344718,87056.0,87043.0,0.01148857]
[1765816061835,1.28168718,87056.0,87040.0,0.22977844]
[1765816062040,1.28168718,87056.0,87042.0,0.0114887]
[1765816062250,1.28168718,87056.0,87047.0,0.01148804]
[1765816062458,1.28168718,87056.0,87045.0,0.24125366]
[1765816062902,1.28168718,87056.0,87047.0,0.01148804]
[1765816063095,1.28368718,87056.0,87055.0,0.00325214]
[1765816063276,1.63415911,87056.0,87055.0,0.00025214]
[1765816063477,1.63415911,87056.0,87025.0,0.01149095]
[1765816063478,0.01149029,87030.0,87026.0,0.2302157]
[1765816063699,0.01349,87027.0,87026.0,0.0004]
[1765816064043,0.01510287,87027.0,87026.0,0.0004]
[1765816065274,1.08076287,87027.0,87026.0,0.0004]
[1765816065486,1.08176287,87027.0,87026.0,0.0004]
[1765816065630,1.37246287,87027.0,87026.0,0.0004]
[1765816065831,1.42248126,87027.0,87026.0,0.0004]
[1765816067711,1.56437757,87027.0,87026.0,0.0004]
[1765816067986,1.44717757,87027.0,87026.0,0.0004]
[1765816068201,1.42148126,87027.0,87026.0,0.0004]
[1765816068354,1.42548126,87027.0,87026.0,0.0004]
[1765816068571,1.37946287,87027.0,87026.0,0.0004]
[1765816068754,1.34663287,87027.0,87026.0,0.0004]
[1765816069204,0.28974287,87027.0,87026.0,0.0004]
[1765816069351,0.27150287,87027.0,87026.0,0.0004]
[1765816069555,0.00961287,87027.0,87026.0,0.00131437]
[1765816070015,0.008,87027.0,87026.0,0.02825611]
[1765816070175,1.07227,87027.0,87026.0,0.00131437]
[1765816070371,1.04021,87027.0,87026.0,0.00131437]
[1765816070578,0.1417,87027.0,87026.0,0.00131437]
[1765816071002,0.007,87027.0,87026.0,0.23113074]
[1765816071210,0.003,87027.0,87026.0,0.39818313]
[1765816071621,0.005,87027.0,87026.0,0.39818313]
[1765816071765,0.003,87027.0,87026.0,0.39818313]
[1765816071970,0.0114891,87039.0,87036.0,0.22978915]
[1765816072202,0.0114887,87042.0,87036.0,0.22978915]
[1765816072203,0.24126466,87042.0,87037.0,0.24127531]
[1765816072415,0.01148857,87043.0,87037.0,0.07238468]
[1765816072619,0.22978364,87039.0,87035.0,0.01148963]
[1765816072978,0.24127192,87039.0,87036.0,0.24127869]
[1765816073176,0.0114891,87039.0,87036.0,0.24127869]
[1765816073361,0.01148976,87034.0,87028.0,0.01149055]
[1765816073564,0.0114891,87039.0,87036.0,0.01148949]
[1765816073740,1.0,87040.0,87037.0,0.01148936]
[1765816073907,1.0,87040.0,87037.0,0.24127584]
[1765816074107,0.8681,87040.0,87039.0,0.22978205]
[1765816074320,0.01148857,87043.0,87040.0,0.24126691]
[1765816074321,1.0,87043.0,87040.0,0.24126691]
[1765816074519,1.0,87043.0,87040.0,0.24126723]
[1765816074721,1.0,87043.0,87038.0,0.04825561]
[1765816074722,1.22978205,87039.0,87038.0,0.04825561]
[1765816074922,0.9039,87039.0,87038.0,0.04825561]
[1765816075140,0.613,87039.0,87038.0,0.04825561]
[1765816075345,0.01148949,87036.0,87031.0,0.01149015]
[1765816075698,0.2298119,87028.0,87022.0,0.24151703]
[1765816075857,0.01149015,87031.0,87027.0,0.24130218]
[1765816076063,0.01149029,87030.0,87025.0,0.24130843]
[1765816076269,1.01149029,87030.0,87026.0,0.01189081]
[1765816076636,1.0,87031.0,87029.0,0.22980713]
[1765816076788,1.0,87030.0,87028.0,0.01149055]
[1765816077152,1.0,87030.0,87028.0,0.07475052]
[1765816077153,0.24130187,87029.0,87028.0,0.07475052]
[1765816077395,0.22981373,87027.0,87026.0,0.0004]
[1765816077611,0.01149042,87029.0,87026.0,0.0004]
[1765816077756,0.01149042,87029.0,87028.0,0.00085129]
[1765816078542,1.0,87030.0,87028.0,0.00085129]
[1765816078720,1.0,87030.0,87028.0,0.22981064]
[1765816078920,1.24129761,87030.0,87029.0,0.00081975]
[1765816079543,1.27197761,87030.0,87029.0,0.00081975]
[1765816079946,1.0,87031.0,87029.0,0.00081975]
[1765816080102,0.8386,87032.0,87029.0,0.2412987]
[1765816080304,0.8386,87032.0,87029.0,0.05080182]
[1765816080539,0.841,87032.0,87029.0,0.29210056]
[1765816080712,1.0,87035.0,87034.0,0.22979525]
[1765816080909,1.0,87045.0,87044.0,0.22976885]
[1765816081133,0.01148765,87050.0,87048.0,0.02618]